fUSD/lending_fUSD_20240204
["ID","MTS","AMOUNT","RATE_DAILY","PERIOD"]
[313245022,1707007844755,-500.0,0.00030665,2]
[313245023,1707007844765,-500.0,0.00030665,2]
[313245024,1707007844774,-500.0,0.00030665,2]
[313245025,1707007844787,-500.0,0.00030665,2]
[313245026,1707007844799,-500.0,0.00030665,2]
[313245027,1707007844809,-500.0,0.00030665,2]
[313245028,1707007844819,-500.0,0.00030665,2]
[313245029,1707007844829,-500.0,0.00030665,2]
[313245030,1707007844838,-500.0,0.00030665,2]
[313245031,1707007844847,-500.0,0.00030665,2]
[313245032,1707007844856,-500.0,0.00030665,2]
[313245033,1707007844867,-500.0,0.00030665,2]
[313245034,1707007844877,-500.0,0.00030665,2]
[313245035,1707007844886,-500.0,0.00030665,2]
[313245036,1707007844894,-500.0,0.00030665,2]
[313245037,1707007844903,-500.0,0.00030665,2]
[313245038,1707007844912,-500.0,0.00030665,2]
[313245039,1707007844921,-500.0,0.00030665,2]
[313245040,1707007844930,-500.0,0.00030665,2]
[313245041,1707007844938,-500.0,0.00030665,2]
[313245042,1707007844947,-500.0,0.00030665,2]
[313245043,1707007844956,-500.0,0.00030665,2]
[313245044,1707007844965,-500.0,0.00030665,2]
[313245045,1707007844973,-500.0,0.00030665,2]
[313245046,1707007844982,-500.0,0.00030665,2]
[313245047,1707007844992,-500.0,0.00030665,2]
[313245048,1707007845001,-500.0,0.00030665,2]
[313245049,1707007845010,-500.0,0.00030665,2]
[313245050,1707007845019,-500.0,0.00030665,2]
[313245051,1707007845029,-500.0,0.00030665,2]
[313245052,1707007845039,-500.0,0.00030665,2]
[313245053,1707007845048,-500.0,0.00030665,2]
[313245054,1707007845057,-500.0,0.00030665,2]
[313245055,1707007845066,-500.0,0.00030665,2]
[313245056,1707007845076,-500.0,0.00030665,2]
[313245057,1707007845085,-500.0,0.00030665,2]
[313245058,1707007845094,-500.0,0.00030665,2]
[313245059,1707007845103,-500.0,0.00030665,2]
[313245060,1707007845113,-500.0,0.00030665,2]
[313245061,1707007845123,-500.0,0.00030665,2]
[313245062,1707007845133,-500.0,0.00030665,2]
[313245063,1707007845142,-500.0,0.00030665,2]
[313245064,1707007845152,-500.0,0.00030665,2]
[313245065,1707007845161,-500.0,0.00030665,2]
[313245066,1707007845170,-500.0,0.00030665,2]
[313245067,1707007845179,-500.0,0.00030665,2]
[313245068,1707007845189,-500.0,0.00030665,2]
[313245069,1707007845198,-500.0,0.00030665,2]
[313245070,1707007845207,-500.0,0.00030665,2]
[313245071,1707007845216,-500.0,0.00030665,2]
[313245072,1707007845226,-500.0,0.00030665,2]
[313245073,1707007845236,-500.0,0.00030665,2]
[313245074,1707007845245,-500.0,0.00030665,2]
[313245075,1707007845255,-500.0,0.00030665,2]
[313245076,1707007845264,-500.0,0.00030665,2]
[313245077,1707007845273,-500.0,0.00030665,2]
[313245078,1707007845283,-500.0,0.00030665,2]
[313245079,1707007845293,-500.0,0.00030665,2]
[313245080,1707007845301,-500.0,0.00030665,2]
[313245081,1707007845311,-500.0,0.00030665,2]
[313245082,1707007845320,-500.0,0.00030665,2]
[313245083,1707007845329,-500.0,0.00030665,2]
[313245084,1707007845339,-500.0,0.00030665,2]
[313245085,1707007845348,-500.0,0.00030665,2]
[313245086,1707007845358,-500.0,0.00030665,2]
[313245087,1707007845367,-500.0,0.00030665,2]
[313245089,1707007845376,-500.0,0.00030665,2]
[313245091,1707007845385,-500.0,0.00030665,2]
[313245093,1707007845394,-500.0,0.00030665,2]
[313245094,1707007845402,-500.0,0.00030665,2]
[313245096,1707007845411,-500.0,0.00030665,2]
[313245098,1707007845420,-500.0,0.00030665,2]
[313245099,1707007845429,-500.0,0.00030665,2]
[313245101,1707007845438,-500.0,0.00030665,2]
[313245103,1707007845447,-500.0,0.00030665,2]
[313245104,1707007845456,-500.0,0.00030665,2]
[313245106,1707007845465,-500.0,0.00030665,2]
[313245107,1707007845474,-500.0,0.00030665,2]
[313245108,1707007845482,-500.0,0.00030665,2]
[313245109,1707007845491,-500.0,0.00030665,2]
[313245110,1707007845500,-500.0,0.00030665,2]
[313245111,1707007845509,-500.0,0.00030665,2]
[313245112,1707007845518,-500.0,0.00030665,2]
[313245113,1707007845527,-500.0,0.00030665,2]
[313245114,1707007845536,-500.0,0.00030665,2]
[313245115,1707007845545,-500.0,0.00030665,2]
[313245116,1707007845554,-500.0,0.00030665,2]
[313245117,1707007845563,-500.0,0.00030665,2]
[313245118,1707007845574,-500.0,0.00030665,2]
[313245119,1707007845584,-500.0,0.00030665,2]
[313245120,1707007845594,-500.0,0.00030665,2]
[313245121,1707007845603,-500.0,0.00030665,2]
[313245122,1707007845613,-500.0,0.00030665,2]
[313245123,1707007845622,-500.0,0.00030665,2]
[313245124,1707007845631,-500.0,0.00030665,2]
[313245125,1707007845640,-500.0,0.00030665,2]
[313245126,1707007845650,-500.0,0.00030665,2]
[313245127,1707007845661,-500.0,0.00030665,2]
[313245128,1707007845670,-500.0,0.00030665,2]
[313245129,1707007845680,-500.0,0.00030665,2]
[313245130,1707007845689,-500.0,0.00030665,2]
[313245131,1707007845698,-500.0,0.00030665,2]
[313245132,1707007845707,-500.0,0.00030665,2]
[313245133,1707007845716,-500.0,0.00030665,2]
[313245134,1707007845725,-500.0,0.00030665,2]
[313245135,1707007845734,-500.0,0.00030665,2]
[313245136,1707007845744,-500.0,0.00030665,2]
[313245137,1707007845753,-500.0,0.00030665,2]
[313245138,1707007845761,-500.0,0.00030665,2]
[313245139,1707007845770,-500.0,0.00030665,2]
[313245140,1707007845780,-500.0,0.00030665,2]
[313245141,1707007845794,-500.0,0.00030665,2]
[313245142,1707007845803,-500.0,0.00030665,2]
[313245143,1707007845813,-500.0,0.00030665,2]
[313245145,1707007845822,-500.0,0.00030665,2]
[313245147,1707007845831,-500.0,0.00030665,2]
[313245148,1707007845841,-500.0,0.00030665,2]
[313245149,1707007845850,-500.0,0.00030665,2]
[313245150,1707007845859,-500.0,0.00030665,2]
[313245151,1707007845869,-500.0,0.00030665,2]
[313245152,1707007845878,-500.0,0.00030665,2]
[313245153,1707007845887,-500.0,0.00030665,2]
[313245154,1707007845896,-500.0,0.00030665,2]
[313245155,1707007845905,-500.0,0.00030665,2]
[313245156,1707007845914,-500.0,0.00030665,2]
[313245158,1707007845923,-500.0,0.00030665,2]
[313245160,1707007845932,-500.0,0.00030665,2]
[313245161,1707007845941,-500.0,0.00030665,2]
[313245162,1707007845950,-500.0,0.00030665,2]
[313245163,1707007845959,-500.0,0.00030665,2]
[313245164,1707007845967,-500.0,0.00030665,2]
[313245165,1707007845976,-500.0,0.00030665,2]
[313245166,1707007845986,-500.0,0.00030665,2]
[313245167,1707007845995,-500.0,0.00030665,2]
[313245168,1707007846003,-500.0,0.00030665,2]
[313245169,1707007846012,-500.0,0.00030665,2]
[313245170,1707007846021,-500.0,0.00030665,2]
[313245171,1707007846031,-500.0,0.00030665,2]
[313245172,1707007846040,-500.0,0.00030665,2]
[313245173,1707007846049,-500.0,0.00030665,2]
[313245174,1707007846058,-500.0,0.00030665,2]
[313245175,1707007846067,-500.0,0.00030665,2]
[313245176,1707007846076,-500.0,0.00030665,2]
[313245177,1707007846085,-500.0,0.00030665,2]
[313245178,1707007846095,-500.0,0.00030665,2]
[313245179,1707007846104,-500.0,0.00030665,2]
[313245180,1707007846113,-500.0,0.00030665,2]
[313245181,1707007846122,-500.0,0.00030665,2]
[313245182,1707007846131,-500.0,0.00030665,2]
[313245183,1707007846140,-500.0,0.00030665,2]
[313245184,1707007846150,-500.0,0.00030665,2]
[313245185,1707007846159,-500.0,0.00030665,2]
[313245186,1707007846168,-150.0,0.00030714,2]
[313245187,1707007846178,-5552.52897729,0.000308,2]
[313245188,1707007846187,-4541.24986505,0.00030963,2]
[313245189,1707007846196,-367.720734,0.00031,4]
[313245190,1707007846205,-5506.7943014,0.00031,4]
[313245191,1707007846215,-2001.22,0.00031,2]
[313245192,1707007846224,-309.36,0.00031,2]
[313245193,1707007846234,-200.0,0.00031152,2]
[313245194,1707007846242,-950.0,0.00031208,2]
[313245195,1707007846252,-839.0,0.00031208,2]
[313245196,1707007846261,-1232.0,0.00031208,2]
[313245197,1707007846270,-1250.0,0.00031208,2]
[313245198,1707007846279,-150.0,0.00031208,2]
[313245199,1707007846288,-1138.0,0.00031208,2]
[313245200,1707007846297,-859.0,0.00031208,2]
[313245201,1707007846308,-313.0,0.00031208,2]
[313245202,1707007846317,-150.0,0.00031208,2]
[313245203,1707007846326,-19783.0,0.00031208,2]
[313245204,1707007846335,-2282.0,0.00031208,2]
[313245205,1707007846345,-2917.0,0.00031208,2]
[313245206,1707007846354,-1034.0,0.00031208,2]
[313245207,1707007846363,-329.89,0.00031266,2]
[313245208,1707007846372,-150.0,0.00031291,2]
[313245209,1707007846381,-3000.0,0.0003142,2]
[313245210,1707007846390,-800.0,0.0003147,2]
[313245211,1707007846399,-152.43214073,0.00031482,2]
[313245212,1707007846514,-151.07668403,0.00031482,2]
[313245213,1707007846524,-791.63,0.00031507,2]
[313245214,1707007846533,-160.99,0.00031507,2]
[313245215,1707007846543,-155.0,0.00031507,2]
[313245216,1707007846552,-180.0,0.00031644,2]
[313245217,1707007846561,-151.0,0.00031731,120]
[313245218,1707007846570,-375.03299324,0.00031731,4]
[313245219,1707007846579,-155.0,0.00031731,4]
[313245220,1707007846588,-942.03003609,0.00031731,4]
[313245221,1707007846597,-263.95414554,0.00031732,4]
[313245222,1707007846606,-1857.71613245,0.00031733,4]
[313245223,1707007846615,-920.31895963,0.00031733,4]
[313245224,1707007846624,-336.15,0.0003175,2]
[313245225,1707007846636,-6348.95972,0.00031799,4]
[313245226,1707007846645,-209.66318511,0.000318,7]
[313245227,1707007846656,-2815.01449011,0.000318,2]
[313245228,1707007846666,-221.04028245,0.000318,4]
[313245229,1707007846675,-5862.35358759,0.000318,4]
[313245230,1707007846685,-180.49694352,0.000318,4]
[313245231,1707007846694,-1583.0651044,0.000318,4]
[313245232,1707007846705,-200.0,0.000318,2]
[313245233,1707007846715,-686.51235916,0.000318,4]
[313245234,1707007846725,-150.0,0.000318,20]
[313245235,1707007846735,-213.61975687,0.000318,7]
[313245236,1707007846745,-225.0,0.000318,7]
[313245237,1707007846754,-151.88242067,0.000318,7]
[313245238,1707007846763,-1056.02498657,0.000318,7]
[313245239,1707007846772,-200.0,0.000318,2]
[313245240,1707007846783,-3000.0,0.000318,2]
[313245241,1707007846794,-382283.080259,0.000318,3]
[313245242,1707007846805,-8557.21441498,0.000318,7]
[313245243,1707007846815,-4000.0,0.000318,2]
[313245244,1707007846826,-150.0,0.00031867,2]
[313245245,1707007846836,-212.28,0.00031928,2]
[313245246,1707007846846,-13128.77097313,0.00032,4]
[313245247,1707007846855,-800.0,0.00032,3]
[313245248,1707007846865,-800.0,0.00032047,2]
[313245249,1707007846874,-153.58945095,0.00032075,7]
[313245250,1707007846883,-4541.24986505,0.0003208,3]
[313245251,1707007846892,-2001.22,0.00032085,2]
[313245252,1707007846901,-167.0,0.00032157,2]
[313245253,1707007846910,-39839.51280375,0.00032204,3]
[313245254,1707007846919,-151.0,0.00032378,30]
[313245255,1707007846928,-309.36,0.00032415,2]
[313245256,1707007846936,-3000.0,0.0003243,2]
[313245257,1707007846946,-150.0,0.00032444,2]
[313245258,1707007846954,-289.60942036,0.000325,2]
[313245259,1707007846963,-66039.857,0.000327,2]
[313245260,1707007846972,-887.7791,0.000327,2]
[313245261,1707007846981,-33213.594011,0.000327,2]
[313245262,1707007846990,-187.47113411,0.0003279,2]
[313245263,1707007846999,-2131732.85592159,0.000328,2]
[313245264,1707007847008,-1962.663427,0.000328,2]
[313245265,1707007847016,-200.0,0.000328,10]
[313245266,1707007847025,-200.0,0.000328,6]
[313245267,1707007847034,-152.94827905,0.00032809,2]
[313245268,1707007847044,-975.91,0.00032872,2]
[313245269,1707007847053,-150.01,0.00032876,2]
[313245270,1707007847062,-836.40894772,0.00032876,2]
[313245271,1707007847071,-150.1,0.00032877,2]
[313245272,1707007847080,-188554.68,0.00032877,2]
[313245273,1707007847089,-500.0,0.00032877,2]
[313245274,1707007847098,-55432.2,0.00032877,2]
[313245275,1707007847107,-166.06341766,0.00032877,2]
[313245276,1707007847117,-8052.16181428,0.00032877,2]
[313245277,1707007847126,-3496.77648228,0.00032877,4]
[313245278,1707007847135,-155.0,0.00032877,4]
[313245279,1707007847144,-544.47162038,0.00032877,4]
[313245280,1707007847154,-1257.8894917,0.00032877,2]
[313245281,1707007847163,-158866.8720612,0.00032877,2]
[313245282,1707007847172,-10593.6446605,0.00032877,2]
[313245283,1707007847181,-155.0,0.00032877,2]
[313245284,1707007847190,-1741.94,0.0003288,2]
[313245285,1707007847200,-1741.94,0.0003288,2]
[313245286,1707007847209,-1741.94,0.0003288,2]
[313245287,1707007847218,-1741.94,0.0003288,2]
[313245288,1707007847227,-1741.94,0.0003288,2]
[313245289,1707007847236,-375.0,0.000329,2]
[313245290,1707007847246,-2000.0,0.00033,5]
[313245291,1707007847255,-28777.024461,0.00033,2]
[313245292,1707007847264,-88995.9172797,0.00033,2]
[313245293,1707007847274,-150.0,0.00033021,2]
[313245294,1707007847284,-151.0,0.00033039,7]
[313245295,1707007847295,-975.91,0.00033045,2]
[313245296,1707007847305,-3000.0,0.0003305,2]
[313245297,1707007847315,-191.26,0.00033074,2]
[313245298,1707007847324,-153.49,0.000331,2]
[313245299,1707007847334,-153.49,0.000331,2]
[313245300,1707007847345,-153.49,0.000331,2]
[313245301,1707007847354,-153.49,0.000331,2]
[313245302,1707007847363,-153.49,0.000331,2]
[313245303,1707007847376,-153.49,0.000331,2]
[313245304,1707007847385,-153.49,0.000331,2]
[313245305,1707007847394,-153.49,0.000331,2]
[313245306,1707007847404,-2001.22,0.0003317,2]
[313245307,1707007847415,-4541.24986505,0.00033197,5]
[313245308,1707007847424,-975.91,0.00033218,2]
[313245309,1707007847433,-152.0,0.00033243,3]
[313245310,1707007847443,-2078.08556941,0.000333,4]
[313245311,1707007847453,-200.0,0.000333,6]
[313245312,1707007847465,-975.91,0.00033391,2]
[313245313,1707007847475,-150.1,0.000334,4]
[313245314,1707007847485,-394.64354434,0.000335,2]
[313245315,1707007847498,-2687.97,0.000335,2]
[313245316,1707007847507,-2687.97,0.000335,2]
[313245317,1707007847517,-2687.97,0.000335,2]
[313245318,1707007847526,-2687.97,0.000335,2]
[313245319,1707007847535,-2687.97,0.000335,2]
[313245320,1707007847544,-2687.97,0.000335,2]
[313245321,1707007847555,-2687.97,0.000335,2]
[313245322,1707007847565,-2687.97,0.000335,2]
[313245323,1707007847575,-2687.97,0.000335,2]
[313245324,1707007847585,-2687.97,0.000335,2]
[313245325,1707007847594,-2687.97,0.000335,2]
[313245326,1707007847605,-2687.97,0.000335,2]
[313245327,1707007847615,-2687.97,0.000335,2]
[313245328,1707007847625,-2687.97,0.000335,2]
[313245329,1707007847635,-2687.97,0.000335,2]
[313245330,1707007847644,-2687.97,0.000335,2]
[313245331,1707007847654,-2687.97,0.000335,2]
[313245332,1707007847663,-2687.97,0.000335,2]
[313245333,1707007847672,-2687.97,0.000335,2]
[313245334,1707007847682,-2687.97,0.000335,2]
[313245335,1707007847690,-975.91,0.00033564,2]
[313245336,1707007847699,-187.08,0.00033588,10]
[313245337,1707007847708,-150.0,0.00033598,2]
[313245338,1707007847717,-3000.0,0.0003368,2]
[313245339,1707007847726,-260.92996354,0.00033704,2]
[313245340,1707007847735,-151.0,0.00033713,4]
[313245341,1707007847744,-975.91,0.00033737,2]
[313245342,1707007847754,-200.0,0.000338,7]
[313245343,1707007847764,-309.36,0.0003383,2]
[313245344,1707007847774,-151.07668403,0.00033901,2]
[313245345,1707007847783,-975.91,0.0003391,2]
[313245346,1707007847796,-765.7827632,0.00034,4]
[313245347,1707007847805,-412.16671733,0.00034,35]
[313245348,1707007847814,-850.0,0.00034,3]
[313245349,1707007847823,-155.9,0.00034068,10]
[313245350,1707007847832,-1428.68628544,0.00034078,2]
[313245351,1707007847842,-975.91,0.00034083,2]
[313245352,1707007847851,-150.0,0.00034175,2]
[313245353,1707007847860,-212.28,0.00034192,2]
[313245354,1707007847870,-950.0,0.00034208,2]
[313245355,1707007847879,-835.0,0.00034208,2]
[313245356,1707007847889,-1232.0,0.00034208,2]
[313245357,1707007847898,-1250.0,0.00034208,2]
[313245358,1707007847907,-449.699,0.00034208,2]
[313245359,1707007847916,-1138.0,0.00034208,2]
[313245360,1707007847925,-150.0,0.00034208,2]
[313245361,1707007847934,-19783.0,0.00034208,2]
[313245362,1707007847943,-2276.0,0.00034208,2]
[313245363,1707007847953,-2917.0,0.00034208,2]
[313245364,1707007847963,-1030.0,0.00034208,2]
[313245365,1707007847972,-155.0,0.00034247,2]
[313245366,1707007847981,-2001.22,0.00034255,2]
[313245367,1707007847990,-975.91,0.00034256,2]
[313245368,1707007847999,-200.0,0.00034267,2]
[313245369,1707007848008,-200.0,0.000343,7]
[313245370,1707007848017,-3000.0,0.000343,2]
[313245371,1707007848026,-4541.24986505,0.00034315,6]
[313245372,1707007848036,-152.0,0.00034391,4]
[313245373,1707007848045,-151.0,0.00034401,2]
[313245374,1707007848054,-975.91,0.00034429,2]
[313245375,1707007848063,-162.46684796,0.0003443,30]
[313245376,1707007848072,-1385.227699,0.0003452,2]
[313245377,1707007848081,-150.0,0.00034548,10]
[313245378,1707007848090,-975.91,0.00034602,2]
[313245379,1707007848099,-800.0,0.00034617,2]
[313245380,1707007848109,-150.0,0.00034751,2]
[313245381,1707007848118,-975.91,0.00034775,2]
[313245382,1707007848127,-2077.841549,0.00034794,2]
[313245383,1707007848137,-197.58708811,0.000348,2]
[313245384,1707007848146,-200.0,0.000348,8]
[313245385,1707007848156,-8996.53463446,0.000349,4]
[313245386,1707007848165,-14865.05716014,0.000349,2]
[313245387,1707007848175,-3826.02191753,0.000349,2]
[313245388,1707007848184,-3826.0219175,0.000349,2]
[313245389,1707007848194,-3826.0219175,0.000349,2]
[313245390,1707007848204,-3826.0219175,0.000349,2]
[313245391,1707007848213,-3826.0219175,0.000349,2]
[313245392,1707007848223,-162.46684797,0.0003493,30]
[313245393,1707007848232,-2770.455398,0.00034931,2]
[313245394,1707007848241,-975.91,0.00034948,2]
[313245395,1707007848250,-1741.75979435,0.0003499,2]
[313245396,1707007848260,-50000.0,0.00035,5]
[313245397,1707007848270,-155.0,0.00035,2]
[313245398,1707007848279,-4049.95443774,0.00035,15]
[313245399,1707007848289,-221.72674081,0.00035,4]
[313245400,1707007848298,-450.02393982,0.00035,4]
[313245401,1707007848307,-155.0,0.00035,2]
[313245402,1707007848316,-1107.65780005,0.00035,14]
[313245403,1707007848325,-1509.2163327,0.00035,2]
[313245404,1707007848335,-156.31431634,0.00035,4]
[313245405,1707007848344,-186.56480102,0.00035,4]
[313245406,1707007848353,-447.91403288,0.00035,4]
[313245407,1707007848363,-15836.26716649,0.00035,7]
[313245408,1707007848372,-428.05315065,0.00035,5]
[313245409,1707007848381,-350.05452143,0.00035,2]
[313245410,1707007848391,-511.64047995,0.00035,3]
[313245411,1707007848401,-200.0,0.00035,120]
[313245412,1707007848410,-156.3624481,0.00035,4]
[313245413,1707007848420,-258809.81381593,0.00035,4]
[313245414,1707007848429,-155.48822949,0.00035,4]
[313245415,1707007848442,-155.87786963,0.00035,4]
[313245416,1707007848451,-1265.5312161,0.00035,4]
[313245417,1707007848461,-1920.0,0.00035,2]
[313245418,1707007848471,-300.0,0.00035,36]
[313245419,1707007848480,-330.53486344,0.00035,7]
[313245420,1707007848489,-1094.26631339,0.00035,2]
[313245421,1707007848499,-317.517096,0.00035,2]
[313245422,1707007848508,-108836.42965073,0.00035,2]
[313245423,1707007848518,-554.41195633,0.00035,2]
[313245424,1707007848527,-1585.88897576,0.00035,4]
[313245425,1707007848536,-1213.9012408,0.00035042,2]
[313245426,1707007848546,-153311.3158125,0.00035042,2]
[313245427,1707007848555,-10233.8019722,0.00035042,2]
[313245428,1707007848564,-3463.069248,0.00035068,2]
[313245429,1707007848573,-136157.25033982,0.0003509,2]
[313245430,1707007848582,-975.91,0.00035121,2]
[313245431,1707007848592,-153.58945095,0.00035153,7]
[313245432,1707007848601,-309.36,0.00035245,2]
[313245433,1707007848611,-975.91,0.00035294,2]
[313245434,1707007848620,-150.0,0.00035328,2]
[313245435,1707007848629,-2001.22,0.0003534,2]
[313245436,1707007848638,-4848.296947,0.00035342,2]
[313245437,1707007848647,-4541.24986505,0.00035432,8]
[313245438,1707007848656,-975.91,0.00035467,2]
[313245439,1707007848665,-1000.0,0.00035484,3]
[313245440,1707007848674,-158.24764484,0.000355,30]
[313245441,1707007848683,-3826.0219175,0.00035506,2]
[313245442,1707007848692,-152.0,0.0003554,5]
[313245443,1707007848701,-150.0,0.00035616,2]
[313245444,1707007848710,-300.0,0.00035616,7]
[313245445,1707007848720,-450.0,0.00035616,12]
[313245446,1707007848729,-600.0,0.00035616,17]
[313245447,1707007848738,-17094.15,0.00035616,2]
[313245448,1707007848747,-10000.0,0.00035616,2]
[313245449,1707007848757,-151.33,0.00035616,2]
[313245450,1707007848766,-155.0,0.00035617,2]
[313245451,1707007848774,-975.91,0.0003564,2]
[313245452,1707007848786,-220.3586524,0.000357,2]
[313245453,1707007848795,-2687.97,0.000358,3]
[313245454,1707007848805,-2687.97,0.000358,3]
[313245455,1707007848814,-2687.97,0.000358,3]
[313245456,1707007848823,-2687.97,0.000358,3]
[313245457,1707007848833,-2687.97,0.000358,3]
[313245458,1707007848842,-2687.97,0.000358,3]
[313245459,1707007848851,-2687.97,0.000358,3]
[313245460,1707007848860,-2687.97,0.000358,3]
[313245461,1707007848870,-2687.97,0.000358,3]
[313245462,1707007848879,-2687.97,0.000358,3]
[313245463,1707007848888,-2687.97,0.000358,3]
[313245464,1707007848897,-2687.97,0.000358,3]
[313245465,1707007848905,-2687.97,0.000358,3]
[313245466,1707007848914,-2687.97,0.000358,3]
[313245467,1707007848923,-2687.97,0.000358,3]
[313245468,1707007848932,-2687.97,0.000358,3]
[313245469,1707007848941,-2687.97,0.000358,3]
[313245470,1707007848950,-2687.97,0.000358,3]
[313245471,1707007848960,-2687.97,0.000358,3]
[313245472,1707007848969,-2687.97,0.000358,3]
[313245473,1707007848978,-975.91,0.00035813,2]
[313245474,1707007848986,-150.0,0.00035905,2]
[313245475,1707007848995,-162.46684797,0.0003593,30]
[313245476,1707007849005,-975.91,0.00035986,2]
[313245477,1707007849014,-50000.0,0.00036,6]
[313245478,1707007849023,-299.2518509,0.00036,4]
[313245479,1707007849032,-6178.42343834,0.00036,2]
[313245480,1707007849042,-230.0,0.00036,120]
[313245481,1707007849052,-3000.0,0.00036,7]
[313245482,1707007849185,-300.0,0.00036,37]
[313245483,1707007849196,-900.0,0.00036,3]
[313245484,1707007849205,-317.517096,0.00036,2]
[313245485,1707007849214,-205.0,0.0003607,2]
[313245486,1707007849223,-211.0,0.0003607,2]
[313245487,1707007849232,-157.84474763,0.000361,4]
[313245488,1707007849242,-975.91,0.00036159,2]
[313245489,1707007849251,-153.49,0.000363,3]
[313245490,1707007849260,-153.49,0.000363,3]
[313245491,1707007849269,-153.49,0.000363,3]
[313245492,1707007849279,-153.49,0.000363,3]
[313245493,1707007849289,-153.49,0.000363,3]
[313245494,1707007849298,-153.49,0.000363,3]
[313245495,1707007849307,-153.49,0.000363,3]
[313245496,1707007849316,-153.49,0.000363,3]
[313245497,1707007849326,-1753.42259588,0.00036301,30]
[313245498,1707007849334,-1753.42259588,0.00036301,30]
[313245499,1707007849343,-2001.22,0.00036425,2]
[313245500,1707007849353,-158.72,0.00036438,2]
[313245501,1707007849363,-158.72,0.00036438,31]
[313245502,1707007849372,-158.72,0.00036438,60]
[313245503,1707007849381,-158.72,0.00036438,89]
[313245504,1707007849390,-1169.9129899,0.0003644,2]
[313245505,1707007849399,-147755.7595637,0.0003644,2]
[313245506,1707007849408,-9873.9592839,0.0003644,2]
[313245507,1707007849417,-212.28,0.00036456,2]
[313245508,1707007849426,-150.0,0.00036482,2]
[313245509,1707007849435,-103977.22903935,0.0003649,10]
[313245510,1707007849445,-151.07668403,0.00036506,2]
[313245511,1707007849454,-4541.24986505,0.00036549,9]
[313245512,1707007849463,-153.82890557,0.00036571,7]
[313245513,1707007849472,-309.36,0.0003666,2]
[313245514,1707007849481,-179.56667641,0.00036665,7]
[313245515,1707007849490,-1163.69,0.00036676,2]
[313245516,1707007849498,-152.0,0.00036689,6]
[313245517,1707007849507,-153.58945095,0.00036921,7]
[313245518,1707007849516,-10000.0,0.00036934,2]
[313245519,1707007849525,-155.0,0.00036987,2]
[313245520,1707007849534,-50000.0,0.00037,7]
[313245521,1707007849543,-311.24425684,0.00037,4]
[313245522,1707007849552,-750.0,0.00037,2]
[313245523,1707007849561,-15000.0,0.00037,14]
[313245524,1707007849570,-3000.0,0.00037,7]
[313245525,1707007849580,-300.0,0.00037,38]
[313245526,1707007849589,-671.16099057,0.00037,7]
[313245527,1707007849598,-334.97656251,0.00037,2]
[313245528,1707007849607,-317.517096,0.00037,2]
[313245529,1707007849615,-150.0,0.00037059,2]
[313245530,1707007849625,-3826.0219175,0.00037085,2]
[313245531,1707007849634,-945.338,0.00037208,2]
[313245532,1707007849643,-1232.0,0.00037208,2]
[313245533,1707007849652,-1250.0,0.00037208,2]